Cogmind - Beta 15 @@@ ROGUE MODE // 2025.06.29 @ 12:17:36 Player: StaticNoob Result: Smashed by cave-in Performance ------------- Evolutions (0) 0 Regions Visited (3) 600 Robots Destroyed (15) 75 Value Destroyed (219) 219 Prototype IDs (6) 120 Alien Tech Used (0) 0 Bonus (300) 300 TOTAL SCORE: 1314 Bonus ------- Registered with UFD 300 Cogmind --------- Core Integrity 0/250 Matter 208/300 Energy 240/240 System Corruption 7% Temperature Cool (36) Movement Rolling (110) Ox2 Location -8/Scraptown Parts ------- > --- POWER (1) -------- Nuclear Core > --- PROPULSION (2) --- Overtuned Treads Wheel > --- UTILITY (2) ------ Medium Storage Unit > --- WEAPON (2) ------- Slug Cannon > --- INVENTORY (10) --- Light Deuterium Engine Advanced Treads Overtuned Treads Overtuned Scrapsphere Scrap Suit Seismic Detector Hardened Medium Armor Plating Plasma Cannon Heavy Missile Launcher Peak State ------------ > --- POWER ------------ Nuclear Core > --- PROPULSION ------- Overtuned Treads Wheel > --- UTILITY ---------- Scrap Suit > --- WEAPON ----------- Minigun Slug Cannon > --- INVENTORY -------- Hardened Medium Armor Plating Plasma Cannon Heavy Missile Launcher [Rating: 23] Favorites ----------- Power Ion Engine Engine Ion Engine Power Core Nuclear Core Propulsion Wheel Treads Spiked Treads Wheel Wheel Utility Improved Terrain Scanner Device Improved Terrain Scanner Storage Small Storage Unit Weapon Slug Cannon Energy Gun Medium Laser Ballistic Gun Minigun Ballistic Cannon Slug Cannon Launcher Grenade Launcher Build | -11 -10 -10 -8 ------- Run | Yrd Mat Sub Scr Slots Evolved . | . . . . Power . | . . . . Propulsion . | . . . . Utility . | . . . . Weapon . | . . . . Parts Attached 19 | 7 2 4 6 Power 2 | 1 . . 1 Engine 1 | 1 . . . Core 1 | . . . 1 Reactor . | . . . . Propulsion 5 | 2 . 1 2 Treads 3 | 1 . 1 1 Leg . | . . . . Wheel 2 | 1 . . 1 Hover . | . . . . Flight . | . . . . Utility 5 | 2 . 1 2 Device 3 | 1 . 1 1 Storage 2 | 1 . . 1 Processor . | . . . . Hackware . | . . . . Protection . | . . . . Artifact . | . . . . Weapon 7 | 2 2 2 1 Energy Gun 1 | 1 . . . Energy Cannon . | . . . . Ballistic Gun 4 | 1 1 1 1 Ballistic Cannon 1 | . . 1 . Launcher 1 | . 1 . . Special Weapon . | . . . . Impact Weapon . | . . . . Slashing Weapon . | . . . . Piercing Weapon . | . . . . Special Melee Weapon . | . . . . Unidentified Prototypes . | . . . . Parts Lost 3 | . . 1 2 Power . | . . . . Propulsion . | . . . . Utility 1 | . . . 1 Weapon 2 | . . 1 1 Highest Loss Streak 2 | . . 1 2 To Critical Strikes . | . . . . Average Backups 8 | 2 6 7 8 Power 1 | . 1 1 1 Propulsion 1 | 1 2 2 1 Utility 2 | . 1 1 2 Weapon 2 | . 2 3 2 Tool/Special . | . . . . Unused Backups 21 | . . . 21 Power 4 | . . . 4 Propulsion 5 | . . . 5 Utility 5 | . . . 5 Weapon 6 | . . . 6 Tool/Special 1 | . . . 1 Average Slot Usage (%) 99 | . 100 99 100 Engine 12 | . 14 14 11 Core 1 | . . . 2 Treads 14 | . 14 14 14 Wheel 14 | . 14 14 14 Device 14 | . 14 14 14 Storage 14 | . 14 14 14 Energy Gun 3 | . 14 10 . Ballistic Gun 13 | . 13 13 14 Ballistic Cannon 10 | . . 3 14 Peak Build Rating 23 | 7 7 15 23 Average Rating 15 | 4 7 10 17 On Entrance 7 | . 7 7 15 Naked Turns . | . . . . Heaviest Build 28 | 15 16 22 28 Greatest Support 20 | 10 20 20 18 Greatest Overweight (x) 3 | 1 1 2 3 Average Overweight (x) 1 | . . 1 2 Largest Inventory Capacity 10 | 8 8 8 10 Average Capacity 8 | 7 8 8 9 Most Carried 10 | 5 7 8 10 Average Carried 8 | 3 6 7 8 Final Capacity 10 | 8 8 8 10 Final Carried 10 | 5 7 8 10 Class Distribution -------------------- 88% | Mutant 11% | Derelict-Mutant Dominant Class ---------------- Mutant | -10/Materials Mutant | -10/Subcaves Mutant | -8/Scraptown Resources | -11 -10 -10 -8 ----------- Run | Yrd Mat Sub Scr Matter Collected 573 | 142 34 264 133 Remotely . | . . . . Salvage Created 173 | 76 90 7 . Parts 28 | 14 12 2 . Haulers Intercepted . | . . . . Recyclers Shooed 1 | . 1 . . Parts Field Recycled . | . . . . Retrieved Matter . | . . . . Parts Self-Destructed . | . . . . Prevented . | . . . . Kills | -11 -10 -10 -8 ------- Run | Yrd Mat Sub Scr Combat Hostiles Destroyed 9 | . 7 2 . Guns 4 | . 2 2 . AOE 5 | . 5 . . Classes Destroyed 6 | 1 4 1 . Worker 1 | . 1 . . Tunneler 4 | 4 . . . Watcher 1 | . 1 . . Swarmer 6 | . 6 . . Grunt 1 | . 1 . . Subdweller 2 | . . 2 . Best Kill Streak 5 | 4 5 2 . Combat Bots Only 3 | . 3 2 . Max Kills in Single Turn 2 | 1 2 1 . Gunslinging . | . . . . Exploded 2 | . 2 . . Melee . | . . . . Uniques/NPCs Destroyed . | . . . . Combat | -11 -10 -10 -8 -------- Run | Yrd Mat Sub Scr Hostile Shots Fired 81 | . 37 32 12 Missed 22 | . 9 10 3 Hits 59 | . 28 22 9 Melee 3 | . . . 3 Projectile 56 | . 28 22 6 Critical Strikes 1 | . 1 . . Damage Taken 1216 | . 244 519 453 Core 265 | . 37 71 157 Absorbed by Shields . | . . . . Core Remaining (%) 100 | 100 . . . Volleys Fired 40 | 5 17 14 4 Largest 2 | 2 2 2 2 Hottest 70 | 70 70 70 65 Shots Fired 70 | 10 26 28 6 Gun 50 | 10 22 16 2 Cannon 16 | . . 12 4 Launcher 4 | . 4 . . Special . | . . . . Kinetic 50 | 5 13 26 6 Thermal 16 | 5 9 2 . Explosive 4 | . 4 . . Electromagnetic . | . . . . Robot Hit Streak 6 | 1 3 6 1 Robot Miss Streak 3 | 2 3 3 3 Penetration Max . | . . . . Secondary Targets . | . . . . Shots Hit Robots 34 | 3 10 20 1 Core Hits 20 | 4 11 5 . Critical Kills . | . . . . Critical Parts Destroyed 1 | . . 1 . Critical Strikes 1 | . . 1 . Destroy 1 | . . 1 . Melee Attacks . | . . . . Impact . | . . . . Slashing . | . . . . Piercing . | . . . . Sneak Attacks . | . . . . Combat Hostiles . | . . . . Follow-up Attacks . | . . . . Damage Inflicted 903 | 58 370 457 18 Guns 314 | 58 110 146 . Cannons 329 | . . 311 18 Explosions 260 | . 260 . . Melee . | . . . . Ramming . | . . . . Kinetic 541 | 33 46 444 18 Thermal 102 | 25 64 13 . Explosive 260 | . 260 . . Electromagnetic . | . . . . Impact . | . . . . Slashing . | . . . . Piercing . | . . . . Highest Corruption . | . . . . Average Corruption . | . . . . Corruption Purged . | . . . . Corruption Blocked . | . . . . Overload Shots . | . . . . Overflow Damage . | . . . . Projectiles . | . . . . Explosions . | . . . . Melee . | . . . . Knockbacks 5 | . . 5 . Impact . | . . . . Kinetic 5 | . . 5 . Secondary . | . . . . Self-Inflicted Damage 19 | . 19 . . Shots 1 | . 1 . . Rammed . | . . . . Targets Rammed . | . . . . Kicked . | . . . . Crushed . | . . . . Highest Temperature 45 | 18 45 . 36 Average Temperature 14 | 9 16 . 13 Received Heat Transfer 108 | . 24 72 12 Siege Activations . | . . . . Martial Activations . | . . . . Shielding Activations . | . . . . Robots Disrupted . | . . . . Combat Hostiles . | . . . . Robots Corrupted . | . . . . Combat Hostiles . | . . . . Parts Fried . | . . . . Impact Corruptions . | . . . . Robots Melted . | . . . . Combat Hostiles . | . . . . Parts Melted 1 | . 1 . . Heat Transferred 296 | 74 185 37 . Parts Sabotaged . | . . . . Parts Stolen . | . . . . Parts Stripped . | . . . . Power Chain Reactions . | . . . . Alert | -11 -10 -10 -8 ------- Run | Yrd Mat Sub Scr Maximum Alert Level . | . . . . Low Security (%) 100 | 100 100 . . Level 1 . | . . . . Level 2 . | . . . . Level 3 . | . . . . Level 4 . | . . . . Level 5 . | . . . . High Security . | . . . . Max Security . | . . . . Peak Influence 139 | 15 139 . . Initial 6 | . 6 . . Average 30 | 3 35 . . Influence Increases 239 | 20 219 . . Destroy 0b10 Robot/C 140 | . 140 . . Destroy 0b10 Robot/NC 30 | 20 10 . . Destroy Leader 32 | . 32 . . Successful Hack 12 | . 12 . . Destroy Structure 25 | . 25 . . Influence Decreases 239 | 10 110 119 . Entered New Map 62 | . 4 58 . Time Decay 177 | 10 106 61 . Squads Dispatched 1 | . 1 . . Investigation 1 | . 1 . . Extermination . | . . . . Reinforcement . | . . . . Assault . | . . . . Garrison . | . . . . Intercept . | . . . . Searches Triggered . | . . . . Construction Impeded . | . . . . Haulers Reinforced . | . . . . Active Scanning Responses . | . . . . Cargo Convoy Interrupts . | . . . . Stealth | -11 -10 -10 -8 --------- Run | Yrd Mat Sub Scr Distress Signals 1 | . 1 . . Communications Jammed . | . . . . Distress Signals . | . . . . Times Spotted 15 | . 9 2 4 Peak Tracking Total 5 | . 3 2 5 Tactical Retreats . | . . . . Traps | -11 -10 -10 -8 ------- Run | Yrd Mat Sub Scr Traps Triggered . | . . . . Indirectly . | . . . . Trap Hack Attempts . | . . . . Triggered . | . . . . Disarmed . | . . . . Reprogrammed . | . . . . Reused . | . . . . Traps Extracted . | . . . . Installed . | . . . . Triggered . | . . . . Machines | -11 -10 -10 -8 ---------- Run | Yrd Mat Sub Scr Machines Disabled . | . . . . Max in Single Turn . | . . . . Machines Repaired . | . . . . Machines Dismantled . | . . . . Machines Sabotaged . | . . . . Overloaded Fab Kills . | . . . . Hacking | -11 -10 -10 -8 --------- Run | Yrd Mat Sub Scr Machines Accessed 11 | . 5 . 6 Terminals 5 | . 5 . . Fabricators . | . . . . Repair Stations . | . . . . Recycling Units . | . . . . Scanalyzers . | . . . . Garrison Access . | . . . . Total Hacks 80 | . 20 . 60 Successful 68 | . 8 . 60 Failed 12 | . 12 . . Catastrophic 2 | . 2 . . Database Lockouts . | . . . . Manual 9 | . 9 . . Terminals 20 | . 20 . . Fabricators . | . . . . Repair Stations . | . . . . Recycling Units . | . . . . Scanalyzers . | . . . . Garrison Access . | . . . . Terminal Hacks 65 | . 5 . 60 Record 60 | . . . 60 Prototype ID Bank 3 | . 3 . . Level Access Points 1 | . 1 . . Locate Traps 1 | . 1 . . Fabricator Hacks . | . . . . Repair Station Hacks . | . . . . Recycling Unit Hacks . | . . . . Scanalyzer . | . . . . Garrison Access Hacks . | . . . . Unauthorized Hacks 3 | . 3 . . Terminals 3 | . 3 . . Botnet 3 | . 3 . . Fabricators . | . . . . Repair Stations . | . . . . Recycling Units . | . . . . Scanalyzers . | . . . . Garrison Access . | . . . . Data Cores Recovered . | . . . . Used . | . . . . Hacking Detections 5 | . 5 . . Full Trace Events 1 | . 1 . . Feedback Events . | . . . . Feedback Blocked . | . . . . Robot Schematics Acquired . | . . . . Robots Built . | . . . . Authchips . | . . . . Time . | . . . . Total Robot Build Rating . | . . . . Part Schematics Acquired . | . . . . Parts Built . | . . . . Authchips . | . . . . Time . | . . . . Total Part Build Rating . | . . . . Parts Repaired . | . . . . Time . | . . . . Parts Recycled . | . . . . Recycled Matter . | . . . . Retrieved Matter . | . . . . Retrieved Components . | . . . . Parts Scanalyzed . | . . . . Part Schematics Acquired . | . . . . Parts Damaged . | . . . . Bothacking | -11 -10 -10 -8 ------------ Run | Yrd Mat Sub Scr Used RIF Installer . | . . . . Robots Hacked . | . . . . Non-combat . | . . . . Combat . | . . . . Robot Hacks Applied . | . . . . Relay Couplers Released . | . . . . Fabnet Peak Effective % . | . . . . Robots Rewired . | . . . . Allies Hacked . | . . . . Hacks Repelled . | . . . . Allies | -11 -10 -10 -8 -------- Run | Yrd Mat Sub Scr Total Allies . | . . . . Largest Group . | . . . . Highest-Rated Group . | . . . . Highest-Rated Ally . | . . . . Total Orders . | . . . . Ally Attacks . | . . . . Total Damage . | . . . . Kills . | . . . . Allies Corrupted . | . . . . Allies Melted . | . . . . Intel | -11 -10 -10 -8 ------- Run | Yrd Mat Sub Scr Active Infowar (turns) 2721 | 4 346 367 2004 Terrain 2173 | . . 169 2004 Seismic 548 | 4 346 198 . Robot Analysis Total . | . . . . Derelict Logs Recovered 1 | . . . 1 Drone Launches . | . . . . Drone Recoveries . | . . . . Exploration | -11 -10 -10 -8 ------------- Run | Yrd Mat Sub Scr Turns Passed 2791 | 70 346 367 2008 Spaces Moved 2417 | 45 289 311 1772 Core 1 | 1 . . . Treads 35 | . 21 5 9 Legs . | . . . . Wheels 2381 | 44 268 306 1763 Hover . | . . . . Flight . | . . . . Fastest Speed 50 | 50 95 95 100 Average Speed 106 | 88 99 98 110 Slowest Speed 160 | 95 160 160 160 Overloaded Moves . | . . . . Propulsion Burnouts . | . . . . Robots Hopped . | . . . . Potential Cave-ins . | . . . . Cave-ins Triggered 1 | . . . 1 Exploration Rate (%) 38 | 4 56 16 77 Regions Visited 3 Branch Regions 2 Pre-discovered Areas 4 | . . . 4 Known Exits Taken . | . . . . Unknown Exits Taken 3 | 1 1 1 . Scrap Searched 11 | . . 4 7 Spaces Dug 1 | . . . 1 Terrain Destroyed 32 | . 27 3 2 Melee . | . . . . Projectile 5 | . . 3 2 AOE 27 | . 27 . . Terrain Rammed . | . . . . Walls Destroyed . | . . . . Machines Disabled . | . . . . Actions | -11 -10 -10 -8 --------- Run | Yrd Mat Sub Scr Total 2561 | 62 318 344 1837 Wait 17 | . 7 10 . Move 2414 | 44 288 310 1772 Hop . | . . . . Pick Up 37 | 6 2 3 26 Fast Attach 11 | 6 . 2 3 Attach 3 | 1 . 1 1 Detach 2 | . . . 2 Swap 10 | . 4 1 5 Drop 27 | . . 3 24 Fire 40 | 5 17 14 4 Melee . | . . . . Ram . | . . . . Kick . | . . . . Crush . | . . . . Escape Stasis . | . . . . Rewire . | . . . . Trap . | . . . . Miscellaneous . | . . . . Route ------- -11/Scrapyard -10/Materials (discovered 4 exits: *Mat x3 / [*Sub]) -10/Subcaves -8/Scraptown (discovered 2 exits: [*Fac x2]) History --------- Turn | Location | Event 7 | -11/Scrapyard | Discovered new exit (range 15) 71 | -11/Scrapyard | Entered Materials 244 | -10/Materials | Discovered new exit (range 6) 318 | -10/Materials | Build established: Mutant 388 | -10/Materials | Identified exit to Materials 410 | -10/Materials | Discovered new exit (range 7) 417 | -10/Materials | Entered Subcaves 418 | -10/Subcaves | Approached by a straggling Scientist 774 | -10/Subcaves | Scientist uncovered a shortcut to Scraptown 784 | -10/Subcaves | Entered Scraptown 1149 | -8/Scraptown | Discovered new exit (range 5) 1183 | -8/Scraptown | Scanned Subdweller tech in exchange for log data 1186 | -8/Scraptown | Learned Research terminal intel 1212 | -8/Scraptown | Visited Cyclists 1248 | -8/Scraptown | Visited Spacefarers 1768 | -8/Scraptown | Visited TADAMA 1798 | -8/Scraptown | Visited Red Mages 1888 | -8/Scraptown | Visited Fellowship of the Rings 1912 | -8/Scraptown | Visited Shadow of the Wyrm 1941 | -8/Scraptown | Visited UFD Registry 1941 | -8/Scraptown | Registered with UFD as "Powerhacker" 1954 | -8/Scraptown | Visited CPS Storage 2006 | -8/Scraptown | Entered Cyclist Reading Room 2145 | -8/Scraptown | Guru changed UFD alias to "Nullshell" 2334 | -8/Scraptown | Visited Abandonware Association 2390 | -8/Scraptown | Learned abandonware demo "KABOOM.EXE" 2390 | -8/Scraptown | Learned abandonware demo "REBOOT5.EXE" 2418 | -8/Scraptown | Visited Chapter 10 2459 | -8/Scraptown | Visited DA-N13 Charitable Foundation 2472 | -8/Scraptown | Found DCF Scrap (31 items) 2535 | -8/Scraptown | Discovered new exit (range 3) 2561 | -8/Scraptown | Found Scrap Suit 2621 | -8/Scraptown | Visited Cartography Club 2741 | -8/Scraptown | Found Scrap Suit 2762 | -8/Scraptown | Build established: Derelict-Mutant 2784 | -8/Scraptown | Attacked by Scraptown defenders 2787 | -8/Scraptown | Learned location of Lower Caves (-6) 2787 | -8/Scraptown | Learned location of Zion (-7) 2787 | -8/Scraptown | Learned location of Warlord (-4) 2787 | -8/Scraptown | Learned location of Archives (-4) 2787 | -8/Scraptown | Learned 16 Materials zone layouts 2787 | -8/Scraptown | Learned 20 Factory zone layouts 2787 | -8/Scraptown | Learned 8 Research zone layouts 2787 | -8/Scraptown | Learned 16 Research zone layouts 2787 | -8/Scraptown | Learned 4 Access zone layouts 2787 | -8/Scraptown | Learned 12 Lower Caves zone layouts 2787 | -8/Scraptown | Learned 8 Upper Caves zone layouts 2787 | -8/Scraptown | Learned 12 Proximity Caves zone layouts 2787 | -8/Scraptown | Learned 4 Hub_04(d) zone layouts 2787 | -8/Scraptown | Learned location of 1 exit from Research 2787 | -8/Scraptown | Learned location of 3 exits from Lower Caves 2787 | -8/Scraptown | Learned location of 2 exits from Research 2793 | -8/Scraptown | Crushed by falling debris 2793 | -8/Scraptown | Smashed by cave-in Last Messages --------------- Access entrance. Data stored: Access entrances (x1). >>Record "ACCESS/ACC=2" Access entrances. Data stored: Access entrances (x2). >>Record "ACCESS/LOW=3" Lower Caves entrances. Data stored: Lower Caves entrances (x3). >>Record "ACCESS/UPP=1" Upper Caves entrance. Data stored: Upper Caves entrances (x1). 02788_ Bolt penetrates Wall. 02791_ CN-EEN(j): "Triiiboooooorg!" 02791_ Penetrated by Bolt. 02793_ The unstable cave ceiling collapses. 02793_ Crushed by falling debris. 02793_ Imp. Terrain Scanner destroyed. 02793_ System corrupted by crushing effect (+3). 02793_ Minigun destroyed. 02793_ System corrupted by crushing effect (+4). Map ----- +----------------------------------------------------+ | ?????????????????????????????????????????????????? | | ?????????????#?#?????????????????????????????????? | | ?????????????????????????????????????????????????? | | ?????????#????????#??????????????????????????????? | | ???#???????#?????????#?????????????#?????????????? | | ?????????????#???##??????????????????????????????? | | ???????#?????????????????????????????????????????? | | ????????????????????#???????#??????#?????????????? | | ?????????????????????????????????????????????????? | | ???????#?#???????????????#####???????????????????? | | ????????????#???##???????#"""#???????????????????? | | #############???####????##" "#???????????????????? | | ""##""|##"""#??## ##????# < #???????????????????? | | " ##"" ## ="#### ###### ##??????????????????? | | |!=! #???#??????????????? | | #?????#????????????? | | ################ ###########??????????????????? | | ?????#????###??## ##?#????#?????????????????????? | | #???#???????????# #????# ???????????????????????? | | #######???#??#??# # ???? ? ??????????#??????????? | | """"#?????#?????# # ? ??????##??????????????????? | | ##??#???#???# #? ? # ??? #??????????????????? | | ""#??###??????# #??###??## #??????????????????? | | ""#??########## #? # ### ???#???????????????? | | """"#??#=* ## # #? j#X###? ????#????????????? | | " ""##?#*!]##] [# #????#@## ####????????????????? | | """"#??#*%/[ =%!# #??# ;x ##???????????????? | | ""#?##]/=]! # #######h######????????????????? | | "#??#[! !**[ # # x #????????????????? | | #??#*[!! * # # #??????#?????????? | | #####??####=##### ## ###########????????????????? | | ###########=##### ## ##???#?????????????????????? | | """"""""""" """"" "" "#?????????????????????????? | | "#???? ??#?????????????????? | | "##????????????????????????? | | "#?????????????????????????? | | "#? ? ??#??????????????????? | | !??#?#??????????????? | | """"""""""""""""" "## ####??????????????????? | | """"""""""""""""" "#?? #??????????????????? | | ###############"" "#??? ! #??????????????????? | | ?????????#??##"" "#????#????????????????????? | | ? ???????#???#"" "#????????"????????????????? | | " ????#????#??#"" "#??????"??????????????????? | | ???????????????"" "#?????????????????????????? | | ???????????????"" "#?????????????????????????? | | ??? ???????????? ?????????????????????????? | | ?????????? ????? "##????????????????????????? | | ????????????????" "#?????????????????????????? | | ????????????????" "??????????????????????????? | +----------------------------------------------------+ Best States ------------- Heat Dissipation 25 Energy Generation 14 Energy Capacity 250 Matter Stores 300 Matter Capacity 300 Sight Range 16 Terrain Scan Range 16 Terrain Scan Density 10 Evasion (%) 44 Recoil Reduction 1 Item Schematics ----------------- None Robot Schematics ------------------ None Fabricated ------------ Nothing Repaired ---------- Nothing Alien Tech Used ----------------- None Achievements -------------- None Challenges ------------ None Game ------ Seed ExoskeletonWeaponsLegs Manual? 0 Play Time 00:30:55 Cumulative 68.8 hours Start 2025.06.29 @ 11:47:28 End 2025.06.29 @ 12:17:36 Sessions 1 Manual Loads 0 Difficulty Rogue Special Mode None Game No. 84 Rogue 84 Adventurer 0 Explorer 0 Win Type - Total 1 Types 0/0/1/0/0/0/0/0/0/0 Lore% 41 Gallery% 48 Achievement% 42 Wizard Run 0 Options --------- Layout 1 ASCII 0 Keyboard 0 Movement Numpad Keybinds 0 Fullscreen 1 Font 24/Smallcaps Map View 50x35 Zoom Use 0% Tactical HUD 1 Map Filters NONE Filters NONE Steam 1 RUN: da484699-83b6-451e-80f2-5155aba21ebc